[Event "Live Chess"]
[Site "Chess.com"]
[Date "2023.05.20"]
[Round "-"]
[White "stevefairhurst"]
[Black "tpm07"]
[Result "0-1"]
[WhiteElo "557"]
[BlackElo "2001"]
[TimeControl "300"]
[EndTime "10:28:54 PDT"]
[Termination "tpm07 won by checkmate"]

1. e4 {[%clk 0:04:54.3]} 1... c5 {[%clk 0:04:54.7]} 2. Nf3 {[%clk 0:04:53]} 2...
d6 {[%clk 0:04:52.3]} 3. Bc4 {[%clk 0:04:51.6]} 3... e6 {[%clk 0:04:43.6]} 4. d3
{[%clk 0:04:48.2]} 4... Nf6 {[%clk 0:04:39.7]} 5. Ng5 {[%clk 0:04:41.2]} 5... a6
{[%clk 0:04:36.3]} 6. Bd2 {[%clk 0:04:37.5]} 6... h6 {[%clk 0:04:34.4]} 7. Nf3
{[%clk 0:04:34.7]} 7... b5 {[%clk 0:04:29.9]} 8. Bb3 {[%clk 0:04:31]} 8... Be7
{[%clk 0:04:29.2]} 9. c4 {[%clk 0:04:28.9]} 9... O-O {[%clk 0:04:25]} 10. O-O
{[%clk 0:04:22.2]} 10... Bb7 {[%clk 0:04:19.8]} 11. Nc3 {[%clk 0:04:21]} 11...
b4 {[%clk 0:04:13.3]} 12. Na4 {[%clk 0:04:11.7]} 12... Nbd7 {[%clk 0:04:08.1]}
13. Qe2 {[%clk 0:04:07.9]} 13... Bc6 {[%clk 0:04:05.3]} 14. Nxc5 {[%clk
0:03:49.8]} 14... Nxc5 {[%clk 0:03:59.2]} 15. Bxb4 {[%clk 0:03:47.4]} 15... Nxb3
{[%clk 0:03:56.4]} 16. axb3 {[%clk 0:03:45.8]} 16... a5 {[%clk 0:03:48.7]} 17.
Bc3 {[%clk 0:03:40.6]} 17... a4 {[%clk 0:03:45.7]} 18. b4 {[%clk 0:03:36.3]}
18... d5 {[%clk 0:03:40.1]} 19. cxd5 {[%clk 0:03:23]} 19... exd5 {[%clk
0:03:37.1]} 20. e5 {[%clk 0:03:18.1]} 20... Ne8 {[%clk 0:03:26.1]} 21. d4 {[%clk
0:03:12.8]} 21... Nc7 {[%clk 0:03:20.8]} 22. Rae1 {[%clk 0:03:01.8]} 22... Qb8
{[%clk 0:03:16.6]} 23. Rd1 {[%clk 0:02:57.7]} 23... Bxb4 {[%clk 0:03:13.5]} 24.
Qd2 {[%clk 0:02:47.4]} 24... Na6 {[%clk 0:03:01.3]} 25. b3 {[%clk 0:02:35.1]}
25... axb3 {[%clk 0:02:54.8]} 26. Rb1 {[%clk 0:02:31.4]} 26... Bb5 {[%clk
0:02:48.7]} 27. Rfd1 {[%clk 0:02:26.3]} 27... Bxc3 {[%clk 0:02:45.9]} 28. Qxc3
{[%clk 0:02:23.1]} 28... Bc4 {[%clk 0:02:45]} 29. Nd2 {[%clk 0:02:07.7]} 29...
Rc8 {[%clk 0:02:37]} 30. Re1 {[%clk 0:01:59.4]} 30... Qb4 {[%clk 0:02:26.7]} 31.
Qf3 {[%clk 0:01:49]} 31... Qxd2 {[%clk 0:02:23.4]} 32. Red1 {[%clk 0:01:43.7]}
32... Qg5 {[%clk 0:02:17.2]} 33. Re1 {[%clk 0:01:24.3]} 33... Qg6 {[%clk
0:02:06.3]} 34. Re3 {[%clk 0:01:17.1]} 34... Qxb1+ {[%clk 0:02:00.3]} 35. Qd1
{[%clk 0:01:03.3]} 35... Qxd1+ {[%clk 0:01:55.5]} 36. Re1 {[%clk 0:01:02.3]}
36... Qxe1# {[%clk 0:01:54.2]} 0-1

[Event "Live Chess"]
[Site "Chess.com"]
[Date "2023.05.20"]
[Round "-"]
[White "WelshTiger"]
[Black "wadsy27"]
[Result "1/2-1/2"]
[WhiteElo "2437"]
[BlackElo "2587"]
[TimeControl "300"]
[EndTime "10:29:18 PDT"]
[Termination "Game drawn by repetition"]

1. e4 {[%clk 0:04:56.9]} 1... e6 {[%clk 0:04:58.4]} 2. d4 {[%clk 0:04:55.6]}
2... d5 {[%clk 0:04:58.3]} 3. Nd2 {[%clk 0:04:54.4]} 3... Be7 {[%clk 0:04:52.3]}
4. Bd3 {[%clk 0:04:52.4]} 4... c5 {[%clk 0:04:50.4]} 5. dxc5 {[%clk 0:04:51.7]}
5... Nf6 {[%clk 0:04:48]} 6. Qe2 {[%clk 0:04:42.1]} 6... a5 {[%clk 0:04:46.9]}
7. Ngf3 {[%clk 0:04:38.4]} 7... Na6 {[%clk 0:04:39.4]} 8. Bb5+ {[%clk
0:04:35.3]} 8... Bd7 {[%clk 0:04:37.9]} 9. Ne5 {[%clk 0:04:27.2]} 9... Nxc5
{[%clk 0:04:28.9]} 10. Nxd7 {[%clk 0:04:22.2]} 10... Ncxd7 {[%clk 0:04:27]} 11.
O-O {[%clk 0:04:07.1]} 11... O-O {[%clk 0:04:22.5]} 12. exd5 {[%clk 0:03:50.2]}
12... Nxd5 {[%clk 0:04:19.1]} 13. Ne4 {[%clk 0:03:47.3]} 13... N7f6 {[%clk
0:04:15.2]} 14. c3 {[%clk 0:03:38.4]} 14... Qc7 {[%clk 0:04:11.5]} 15. Nxf6+
{[%clk 0:03:30.4]} 15... Bxf6 {[%clk 0:04:06.1]} 16. Bd3 {[%clk 0:03:20.6]}
16... Nf4 {[%clk 0:03:42.5]} 17. Bxf4 {[%clk 0:03:19]} 17... Qxf4 {[%clk
0:03:41.6]} 18. Qe4 {[%clk 0:03:18.8]} 18... Qxe4 {[%clk 0:03:40.7]} 19. Bxe4
{[%clk 0:03:18.3]} 19... Rad8 {[%clk 0:03:32.3]} 20. Rad1 {[%clk 0:03:16.9]}
20... b6 {[%clk 0:03:29.3]} 21. f3 {[%clk 0:03:08.9]} 21... g5 {[%clk
0:03:27.6]} 22. Kf2 {[%clk 0:03:07.9]} 22... Kg7 {[%clk 0:03:22.6]} 23. Ke2
{[%clk 0:03:07.1]} 23... Be5 {[%clk 0:03:18.3]} 24. h3 {[%clk 0:03:05.6]} 24...
f5 {[%clk 0:03:15.6]} 25. Bc2 {[%clk 0:03:03.9]} 25... Kf6 {[%clk 0:03:08.5]}
26. Rxd8 {[%clk 0:03:00.1]} 26... Rxd8 {[%clk 0:03:07.4]} 27. Rd1 {[%clk
0:02:59.9]} 27... Bd6 {[%clk 0:02:53.2]} 28. g4 {[%clk 0:02:52.3]} 28... h5
{[%clk 0:02:44.4]} 29. gxf5 {[%clk 0:02:44]} 29... exf5 {[%clk 0:02:41.9]} 30.
Rd5 {[%clk 0:02:43]} 30... Re8+ {[%clk 0:02:38.3]} 31. Kf1 {[%clk 0:02:39.2]}
31... Be5 {[%clk 0:02:36.9]} 32. Ba4 {[%clk 0:02:21.4]} 32... Re6 {[%clk
0:02:21.8]} 33. Bd7 {[%clk 0:02:17.2]} 33... Re7 {[%clk 0:02:20.9]} 34. Bb5
{[%clk 0:02:00.5]} 34... g4 {[%clk 0:02:04.9]} 35. fxg4 {[%clk 0:01:56.5]} 35...
hxg4 {[%clk 0:02:04]} 36. hxg4 {[%clk 0:01:52.7]} 36... fxg4 {[%clk 0:02:03.9]}
37. Be2 {[%clk 0:01:50]} 37... Kf5 {[%clk 0:02:00.4]} 38. Rd8 {[%clk 0:01:30.8]}
38... g3 {[%clk 0:01:45.7]} 39. Kg2 {[%clk 0:01:26.2]} 39... Ke4 {[%clk
0:01:35.2]} 40. Bf3+ {[%clk 0:01:15.2]} 40... Ke3 {[%clk 0:01:32.6]} 41. Rd1
{[%clk 0:01:14.9]} 41... Rh7 {[%clk 0:01:21.9]} 42. Re1+ {[%clk 0:01:14.2]}
42... Kf4 {[%clk 0:01:20.9]} 43. Re4+ {[%clk 0:01:12.7]} 43... Kf5 {[%clk
0:01:19.9]} 44. Re2 {[%clk 0:01:07.6]} 44... Rh2+ {[%clk 0:01:17.5]} 45. Kg1
{[%clk 0:01:07.1]} 45... Kf4 {[%clk 0:01:12.1]} 46. Bg2 {[%clk 0:00:53.7]} 46...
Bd6 {[%clk 0:01:00.4]} 47. a3 {[%clk 0:00:46.5]} 47... Rh8 {[%clk 0:00:45.2]}
48. Re4+ {[%clk 0:00:44.8]} 48... Kf5 {[%clk 0:00:43.7]} 49. b4 {[%clk
0:00:41.6]} 49... axb4 {[%clk 0:00:42.7]} 50. axb4 {[%clk 0:00:39.6]} 50... Be5
{[%clk 0:00:34.9]} 51. Re3 {[%clk 0:00:28]} 51... Rd8 {[%clk 0:00:33]} 52. Rf3+
{[%clk 0:00:27.3]} 52... Bf4 {[%clk 0:00:31.7]} 53. Kf1 {[%clk 0:00:23.6]} 53...
Rd1+ {[%clk 0:00:29]} 54. Ke2 {[%clk 0:00:22.8]} 54... Rd2+ {[%clk 0:00:28.3]}
55. Kf1 {[%clk 0:00:22.5]} 55... Ke5 {[%clk 0:00:23.4]} 56. c4 {[%clk
0:00:15.6]} 56... Rb2 {[%clk 0:00:21.6]} 57. c5 {[%clk 0:00:14.6]} 57... Rxb4
{[%clk 0:00:20]} 58. cxb6 {[%clk 0:00:13.5]} 58... Rxb6 {[%clk 0:00:19]} 59. Rc3
{[%clk 0:00:12.5]} 59... Rb1+ {[%clk 0:00:17.7]} 60. Ke2 {[%clk 0:00:12]} 60...
Rb2+ {[%clk 0:00:16.6]} 61. Kf1 {[%clk 0:00:11.3]} 61... Rf2+ {[%clk 0:00:15.8]}
62. Kg1 {[%clk 0:00:10.8]} 62... Kd4 {[%clk 0:00:13.5]} 63. Ra3 {[%clk
0:00:09.9]} 63... Be3 {[%clk 0:00:12.5]} 64. Ra4+ {[%clk 0:00:08.5]} 64... Kd3
{[%clk 0:00:11.4]} 65. Kh1 {[%clk 0:00:08.3]} 65... Rf8 {[%clk 0:00:09.8]} 66.
Ra3+ {[%clk 0:00:07.8]} 66... Kd4 {[%clk 0:00:07.7]} 67. Ra4+ {[%clk 0:00:07.2]}
67... Kd3 {[%clk 0:00:07]} 68. Ra3+ {[%clk 0:00:06.6]} 68... Ke2 {[%clk
0:00:06.1]} 69. Ra4 {[%clk 0:00:06.5]} 69... Rh8+ {[%clk 0:00:04.4]} 70. Bh3
{[%clk 0:00:05.1]} 70... Rxh3+ {[%clk 0:00:04]} 71. Kg2 {[%clk 0:00:05]} 71...
Rh2+ {[%clk 0:00:02.7]} 72. Kxg3 {[%clk 0:00:04.9]} 72... Rf2 {[%clk 0:00:01.9]}
73. Ra8 {[%clk 0:00:03.4]} 73... Rf3+ {[%clk 0:00:01.8]} 74. Kg2 {[%clk
0:00:02.7]} 74... Rf4 {[%clk 0:00:01.4]} 75. Kg3 {[%clk 0:00:02.6]} 75... Rf3+
{[%clk 0:00:00.8]} 76. Kg2 {[%clk 0:00:02.5]} 76... Rf2+ {[%clk 0:00:00.7]} 77.
Kg3 {[%clk 0:00:02.3]} 77... Rf3+ {[%clk 0:00:00.5]} 1/2-1/2

[Event "Live Chess"]
[Site "Chess.com"]
[Date "2023.05.20"]
[Round "-"]
[White "therealab0ne"]
[Black "SavagePawn7"]
[Result "1-0"]
[WhiteElo "686"]
[BlackElo "753"]
[TimeControl "300"]
[EndTime "10:29:29 PDT"]
[Termination "therealab0ne won on time"]

1. e4 {[%clk 0:04:58.7]} 1... e5 {[%clk 0:04:58.6]} 2. Bc4 {[%clk 0:04:58]} 2...
Bc5 {[%clk 0:04:55.9]} 3. Nc3 {[%clk 0:04:55.6]} 3... Nf6 {[%clk 0:04:53.8]} 4.
d3 {[%clk 0:04:54.7]} 4... d5 {[%clk 0:04:50.3]} 5. Nxd5 {[%clk 0:04:53.1]} 5...
Nxd5 {[%clk 0:04:47.5]} 6. Bxd5 {[%clk 0:04:52.2]} 6... c6 {[%clk 0:04:41.9]} 7.
Bc4 {[%clk 0:04:47.1]} 7... O-O {[%clk 0:04:28.4]} 8. Nf3 {[%clk 0:04:46.2]}
8... Bg4 {[%clk 0:04:18]} 9. O-O {[%clk 0:04:36]} 9... Bxf3 {[%clk 0:04:13.5]}
10. Qxf3 {[%clk 0:04:34.4]} 10... Nd7 {[%clk 0:03:53.7]} 11. Qg3 {[%clk
0:04:19]} 11... Nf6 {[%clk 0:03:45.6]} 12. Bh6 {[%clk 0:04:15.3]} 12... g6
{[%clk 0:03:12.2]} 13. Bxf8 {[%clk 0:03:41.5]} 13... Qxf8 {[%clk 0:03:12.1]} 14.
Rfe1 {[%clk 0:03:40.3]} 14... Qd6 {[%clk 0:03:02.9]} 15. c3 {[%clk 0:03:37.9]}
15... b5 {[%clk 0:02:52.9]} 16. Bb3 {[%clk 0:03:18.1]} 16... Rd8 {[%clk
0:02:50]} 17. d4 {[%clk 0:03:16.9]} 17... exd4 {[%clk 0:02:46.1]} 18. cxd4
{[%clk 0:03:16.1]} 18... Qxd4 {[%clk 0:02:40.4]} 19. Rad1 {[%clk 0:03:13]} 19...
Qxf2+ {[%clk 0:02:21.3]} 20. Qxf2 {[%clk 0:03:06.4]} 20... Rxd1 {[%clk
0:02:10.1]} 21. Rxd1 {[%clk 0:03:00.8]} 21... Bxf2+ {[%clk 0:02:08.2]} 22. Kxf2
{[%clk 0:02:59.9]} 22... Nxe4+ {[%clk 0:02:04]} 23. Ke3 {[%clk 0:02:51.2]} 23...
Ng5 {[%clk 0:01:58.9]} 24. Rd7 {[%clk 0:02:46.5]} 24... a5 {[%clk 0:01:44.6]}
25. Kf4 {[%clk 0:02:43.1]} 25... h6 {[%clk 0:01:36.8]} 26. Ke5 {[%clk
0:02:27.8]} 26... a4 {[%clk 0:01:29.1]} 27. Bc2 {[%clk 0:02:17.3]} 27... h5
{[%clk 0:01:05.2]} 28. Kf6 {[%clk 0:02:06.3]} 28... Nh7+ {[%clk 0:00:59.1]} 29.
Ke5 {[%clk 0:02:01.6]} 29... f6+ {[%clk 0:00:47.6]} 30. Kd6 {[%clk 0:01:58.1]}
30... f5 {[%clk 0:00:36.1]} 31. Kxc6 {[%clk 0:01:53.4]} 31... f4 {[%clk
0:00:25]} 32. Bxg6 {[%clk 0:01:45.1]} 32... Nf8 {[%clk 0:00:21.7]} 33. Bf7+
{[%clk 0:01:38.8]} 33... Kg7 {[%clk 0:00:17.5]} 34. Be8+ {[%clk 0:01:30.7]}
34... Nxd7 {[%clk 0:00:14.8]} 35. Kxd7 {[%clk 0:01:28.9]} 35... Kf6 {[%clk
0:00:12.4]} 36. Kd6 {[%clk 0:01:27.7]} 36... Kg5 {[%clk 0:00:09.4]} 37. Bxb5
{[%clk 0:01:26.7]} 37... h4 {[%clk 0:00:05.2]} 38. Bxa4 {[%clk 0:01:25.9]} 38...
Kg4 {[%clk 0:00:04.6]} 39. b4 {[%clk 0:01:24.9]} 39... f3 {[%clk 0:00:04.5]} 40.
gxf3+ {[%clk 0:01:20.3]} 40... Kxf3 {[%clk 0:00:03.4]} 41. Bd1+ {[%clk
0:01:16.6]} 41... Kg2 {[%clk 0:00:03.3]} 42. Bg4 {[%clk 0:01:10.1]} 42... Kxh2
{[%clk 0:00:03.2]} 43. b5 {[%clk 0:01:08.5]} 43... Kg3 {[%clk 0:00:03]} 44. Be6
{[%clk 0:01:05.6]} 44... h3 {[%clk 0:00:02.9]} 45. Bxh3 {[%clk 0:01:04.5]} 45...
Kxh3 {[%clk 0:00:01.5]} 46. b6 {[%clk 0:01:03.9]} 46... Kg2 {[%clk 0:00:00.6]}
47. b7 {[%clk 0:01:03.3]} 1-0

[Event "Live Chess"]
[Site "Chess.com"]
[Date "2023.05.20"]
[Round "-"]
[White "Doge_Dandolo"]
[Black "Mikhail_Golubev"]
[Result "0-1"]
[WhiteElo "2128"]
[BlackElo "2540"]
[TimeControl "300"]
[EndTime "10:29:37 PDT"]
[Termination "Mikhail_Golubev won by checkmate"]

1. Nf3 {[%clk 0:04:58.7]} 1... Nf6 {[%clk 0:04:55.9]} 2. c4 {[%clk 0:04:56.1]}
2... g6 {[%clk 0:04:54.6]} 3. Nc3 {[%clk 0:04:54.8]} 3... Bg7 {[%clk 0:04:54.1]}
4. e4 {[%clk 0:04:53.7]} 4... d6 {[%clk 0:04:53.4]} 5. d4 {[%clk 0:04:52.5]}
5... O-O {[%clk 0:04:52.3]} 6. Be2 {[%clk 0:04:51.2]} 6... Na6 {[%clk
0:04:50.1]} 7. h3 {[%clk 0:04:48.8]} 7... e5 {[%clk 0:04:47.4]} 8. Be3 {[%clk
0:04:46.7]} 8... exd4 {[%clk 0:04:41.3]} 9. Nxd4 {[%clk 0:04:45.3]} 9... Nc5
{[%clk 0:04:39]} 10. Qc2 {[%clk 0:04:42.4]} 10... Re8 {[%clk 0:04:36]} 11. Bf3
{[%clk 0:04:37.4]} 11... Qe7 {[%clk 0:03:41.6]} 12. O-O {[%clk 0:04:28.4]} 12...
Ncxe4 {[%clk 0:03:38.6]} 13. Bxe4 {[%clk 0:04:22]} 13... Nxe4 {[%clk 0:03:38.5]}
14. Nd5 {[%clk 0:04:19.5]} 14... Qd8 {[%clk 0:03:30.9]} 15. Rfe1 {[%clk
0:04:13.1]} 15... c6 {[%clk 0:03:28.6]} 16. Nf4 {[%clk 0:04:00.8]} 16... c5
{[%clk 0:03:20.3]} 17. Nb5 {[%clk 0:03:47.1]} 17... a6 {[%clk 0:03:18.3]} 18.
Nc3 {[%clk 0:03:45.4]} 18... Nxc3 {[%clk 0:03:17.1]} 19. bxc3 {[%clk 0:03:44.1]}
19... Bf5 {[%clk 0:03:06.4]} 20. Qd2 {[%clk 0:03:37.5]} 20... Be4 {[%clk
0:02:45.1]} 21. Rad1 {[%clk 0:03:27.6]} 21... Qa5 {[%clk 0:02:42.2]} 22. Qxd6
{[%clk 0:03:12.4]} 22... Bxc3 {[%clk 0:02:36.7]} 23. Rf1 {[%clk 0:03:08.1]}
23... Qxa2 {[%clk 0:02:22.3]} 24. Qxc5 {[%clk 0:02:54.9]} 24... Rac8 {[%clk
0:02:14]} 25. Qb6 {[%clk 0:02:47.9]} 25... Bg7 {[%clk 0:01:59.5]} 26. c5 {[%clk
0:02:38.3]} 26... Bc6 {[%clk 0:01:50.8]} 27. h4 {[%clk 0:02:18.1]} 27... Qc2
{[%clk 0:01:35.9]} 28. Rd2 {[%clk 0:02:09.6]} 28... Qe4 {[%clk 0:01:32.7]} 29.
Qb1 {[%clk 0:02:00.2]} 29... a5 {[%clk 0:01:18.2]} 30. Ra2 {[%clk 0:01:48.3]}
30... a4 {[%clk 0:01:13.7]} 31. Rd1 {[%clk 0:01:38.2]} 31... Qe7 {[%clk
0:01:08.4]} 32. Nd5 {[%clk 0:01:29.4]} 32... Qxh4 {[%clk 0:01:04.8]} 33. Nb4
{[%clk 0:01:17.4]} 33... Be4 {[%clk 0:00:57]} 34. Qc1 {[%clk 0:00:54.7]} 34...
Qg4 {[%clk 0:00:53.9]} 35. f3 {[%clk 0:00:50.4]} 35... Bxf3 {[%clk 0:00:52.9]}
36. Rf1 {[%clk 0:00:40.6]} 36... Rxe3 {[%clk 0:00:49.7]} 37. Rxa4 {[%clk
0:00:34.9]} 37... Re2 {[%clk 0:00:41.1]} 38. Rxf3 {[%clk 0:00:27.4]} 38... Qxg2#
{[%clk 0:00:37.4]} 0-1

[Event "Live Chess"]
[Site "Chess.com"]
[Date "2023.05.20"]
[Round "-"]
[White "ViktorTheCoolBoy"]
[Black "luckywookie"]
[Result "1-0"]
[WhiteElo "2538"]
[BlackElo "732"]
[TimeControl "300"]
[EndTime "10:29:37 PDT"]
[Termination "ViktorTheCoolBoy won by resignation"]

1. e4 {[%clk 0:04:57.9]} 1... c6 {[%clk 0:04:58.4]} 2. c4 {[%clk 0:04:55.4]}
2... e5 {[%clk 0:04:41.7]} 3. Nf3 {[%clk 0:04:53.7]} 3... d6 {[%clk 0:04:40]} 4.
d4 {[%clk 0:04:52.2]} 4... Bg4 {[%clk 0:04:33.4]} 5. dxe5 {[%clk 0:04:47.9]}
5... Bxf3 {[%clk 0:04:26.8]} 6. Qxf3 {[%clk 0:04:47.8]} 6... dxe5 {[%clk
0:04:24.8]} 7. Nc3 {[%clk 0:04:47]} 7... Bc5 {[%clk 0:04:17]} 8. Bd2 {[%clk
0:04:44.7]} 8... Nf6 {[%clk 0:04:09.2]} 9. O-O-O {[%clk 0:04:42.6]} 9... Qb6
{[%clk 0:04:02]} 10. g4 {[%clk 0:04:39]} 10... Bd4 {[%clk 0:04:00.4]} 11. g5
{[%clk 0:04:37.7]} 11... Nfd7 {[%clk 0:03:55.8]} 12. h4 {[%clk 0:04:35.9]} 12...
Nc5 {[%clk 0:03:53.6]} 13. Bh3 {[%clk 0:04:30.6]} 13... Nbd7 {[%clk 0:03:49.9]}
14. h5 {[%clk 0:04:25.8]} 14... Rf8 {[%clk 0:03:42.3]} 15. Kb1 {[%clk
0:04:16.9]} 15... O-O-O {[%clk 0:03:35]} 16. Rc1 {[%clk 0:04:11.6]} 16... f6
{[%clk 0:03:23.1]} 17. g6 {[%clk 0:04:08.6]} 17... hxg6 {[%clk 0:03:04.2]} 18.
hxg6 {[%clk 0:04:06.9]} 18... Kb8 {[%clk 0:02:54.6]} 19. Bf5 {[%clk 0:04:03.9]}
19... a5 {[%clk 0:02:36.3]} 20. Rh7 {[%clk 0:04:01]} 20... Rg8 {[%clk
0:02:30.3]} 21. Qd1 {[%clk 0:03:52.6]} 21... Nd3 {[%clk 0:02:22.2]} 22. Rc2
{[%clk 0:03:51.3]} 22... a4 {[%clk 0:02:18.7]} 23. Nxa4 {[%clk 0:03:46.9]} 23...
Qb4 {[%clk 0:02:10.6]} 24. Bxb4 {[%clk 0:03:45.2]} 24... Nxb4 {[%clk 0:02:06.5]}
25. Rd2 {[%clk 0:03:43.3]} 25... c5 {[%clk 0:01:59.6]} 26. Bxd7 {[%clk
0:03:37.9]} 26... Rxd7 {[%clk 0:01:58.2]} 27. Nxc5 {[%clk 0:03:37.2]} 27... Kc7
{[%clk 0:01:49.9]} 28. Nb3 {[%clk 0:03:34.6]} 28... Ra8 {[%clk 0:01:32.6]} 29.
a3 {[%clk 0:03:32.6]} 29... Nc6 {[%clk 0:01:24.4]} 30. f4 {[%clk 0:03:31.7]}
30... Re7 {[%clk 0:01:08.5]} 31. Nxd4 {[%clk 0:03:29.6]} 31... exd4 {[%clk
0:01:07.1]} 32. Qf3 {[%clk 0:03:25.5]} 32... Rd8 {[%clk 0:01:01.9]} 33. Rh5
{[%clk 0:03:23.9]} 33... Na5 {[%clk 0:00:44.5]} 34. Rxa5 {[%clk 0:03:19.7]}
34... b6 {[%clk 0:00:32.2]} 35. Rd5 {[%clk 0:03:17.6]} 35... Red7 {[%clk
0:00:30.5]} 36. R2xd4 {[%clk 0:03:16.1]} 36... Rxd5 {[%clk 0:00:28.3]} 37. Rxd5
{[%clk 0:03:16]} 37... Rxd5 {[%clk 0:00:26.2]} 38. cxd5 {[%clk 0:03:15.9]} 1-0

[Event "Live Chess"]
[Site "Chess.com"]
[Date "2023.05.20"]
[Round "-"]
[White "xx_blindpuffin_xx"]
[Black "Tushinskiy"]
[Result "0-1"]
[WhiteElo "2188"]
[BlackElo "2105"]
[TimeControl "300"]
[EndTime "10:29:38 PDT"]
[Termination "Tushinskiy won by resignation"]

1. d4 {[%clk 0:04:58.7]} 1... e5 {[%clk 0:04:48.8]} 2. dxe5 {[%clk 0:04:56.2]}
2... d6 {[%clk 0:04:46.7]} 3. Nf3 {[%clk 0:04:55.2]} 3... Bg4 {[%clk 0:04:43.6]}
4. g3 {[%clk 0:04:51.7]} 4... Nc6 {[%clk 0:04:38.5]} 5. Bg2 {[%clk 0:04:45.1]}
5... Qd7 {[%clk 0:04:34.8]} 6. O-O {[%clk 0:04:42.2]} 6... O-O-O {[%clk
0:04:32.7]} 7. c4 {[%clk 0:04:33.6]} 7... dxe5 {[%clk 0:04:29.9]} 8. Qxd7+
{[%clk 0:04:31.6]} 8... Rxd7 {[%clk 0:04:29.8]} 9. Nc3 {[%clk 0:04:26.6]} 9...
f6 {[%clk 0:04:28.2]} 10. Be3 {[%clk 0:04:18.4]} 10... Bb4 {[%clk 0:04:25.2]}
11. Nd5 {[%clk 0:04:15.8]} 11... Bd6 {[%clk 0:04:23.1]} 12. Rfd1 {[%clk
0:04:05.9]} 12... Nge7 {[%clk 0:04:21.2]} 13. a3 {[%clk 0:03:58.6]} 13... Rhd8
{[%clk 0:04:14.8]} 14. b4 {[%clk 0:03:55.8]} 14... Nxd5 {[%clk 0:04:10.3]} 15.
cxd5 {[%clk 0:03:46.3]} 15... Ne7 {[%clk 0:04:07.9]} 16. h3 {[%clk 0:03:34.4]}
16... Bh5 {[%clk 0:03:42.8]} 17. Nd2 {[%clk 0:03:24.9]} 17... Bxe2 {[%clk
0:03:29.1]} 18. Rdc1 {[%clk 0:03:20.4]} 18... Kb8 {[%clk 0:03:21]} 19. Ra2
{[%clk 0:03:14.2]} 19... Bh5 {[%clk 0:03:05.4]} 20. Nb3 {[%clk 0:02:48.6]} 20...
Bf7 {[%clk 0:03:00.7]} 21. Rd2 {[%clk 0:02:47.6]} 21... Nf5 {[%clk 0:02:55.1]}
22. Nc5 {[%clk 0:02:41.3]} 22... Bxc5 {[%clk 0:02:50.5]} 23. Bxc5 {[%clk
0:02:23.7]} 23... Bxd5 {[%clk 0:02:48.2]} 24. Rcd1 {[%clk 0:02:20.7]} 24... Be6
{[%clk 0:02:44.5]} 25. Rxd7 {[%clk 0:02:14.9]} 25... Rxd7 {[%clk 0:02:44.4]} 26.
Rxd7 {[%clk 0:02:13.6]} 26... Bxd7 {[%clk 0:02:42.7]} 27. Be4 {[%clk 0:02:06.6]}
27... g6 {[%clk 0:02:38.2]} 28. g4 {[%clk 0:02:04.2]} 28... Nd6 {[%clk
0:02:36.5]} 29. Bd5 {[%clk 0:01:59.2]} 29... f5 {[%clk 0:02:26.9]} 30. f3 {[%clk
0:01:53.7]} 30... Bc6 {[%clk 0:02:18.9]} 31. Bg8 {[%clk 0:01:14.1]} 31... Bxf3
{[%clk 0:02:08.6]} 32. Kf2 {[%clk 0:01:11.3]} 32... fxg4 {[%clk 0:02:05.7]} 33.
Bxh7 {[%clk 0:01:09.8]} 33... Ne4+ {[%clk 0:02:01.4]} 34. Kg1 {[%clk 0:01:07.7]}
34... Nxc5 {[%clk 0:01:54.9]} 35. bxc5 {[%clk 0:01:07.6]} 35... gxh3 {[%clk
0:01:54.2]} 36. Bxg6 {[%clk 0:01:06.3]} 36... Bg2 {[%clk 0:01:53.4]} 0-1

[Event "Live Chess"]
[Site "Chess.com"]
[Date "2023.05.20"]
[Round "-"]
[White "M00nDr4g0n"]
[Black "Enhard"]
[Result "0-1"]
[WhiteElo "871"]
[BlackElo "1438"]
[TimeControl "300"]
[EndTime "10:29:47 PDT"]
[Termination "Enhard won by resignation"]

1. e4 {[%clk 0:04:57.1]} 1... c6 {[%clk 0:04:58.1]} 2. Nc3 {[%clk 0:04:53.5]}
2... d5 {[%clk 0:04:57.2]} 3. f3 {[%clk 0:04:43.9]} 3... dxe4 {[%clk 0:04:54.2]}
4. Nxe4 {[%clk 0:04:37.9]} 4... Bf5 {[%clk 0:04:48.6]} 5. Bc4 {[%clk 0:04:23.4]}
5... e6 {[%clk 0:04:45.8]} 6. d3 {[%clk 0:04:12.3]} 6... Bxe4 {[%clk 0:04:37.9]}
7. fxe4 {[%clk 0:04:09.1]} 7... Bc5 {[%clk 0:04:28.2]} 8. b3 {[%clk 0:04:02.6]}
8... Qa5+ {[%clk 0:04:19.6]} 9. Bd2 {[%clk 0:03:57.8]} 9... Bb4 {[%clk
0:04:16.7]} 10. Nf3 {[%clk 0:03:51.3]} 10... Bc3 {[%clk 0:04:10.4]} 11. Kf2
{[%clk 0:03:26.3]} 11... Bxd2 {[%clk 0:04:07.8]} 12. Nxd2 {[%clk 0:03:22.5]}
12... Qc5+ {[%clk 0:04:05.6]} 13. Ke1 {[%clk 0:03:08.7]} 13... Nf6 {[%clk
0:04:03.8]} 14. Qf3 {[%clk 0:02:59.9]} 14... O-O {[%clk 0:04:00.9]} 15. Rf1
{[%clk 0:02:43.5]} 15... Nbd7 {[%clk 0:03:58.4]} 16. a4 {[%clk 0:02:01.7]} 16...
b5 {[%clk 0:03:47.2]} 17. axb5 {[%clk 0:01:47.4]} 17... cxb5 {[%clk 0:03:46]}
18. Qh3 {[%clk 0:01:23.2]} 18... bxc4 {[%clk 0:03:39.8]} 19. bxc4 {[%clk
0:01:19.8]} 19... Qd4 {[%clk 0:03:29.8]} 20. Nf3 {[%clk 0:01:10.6]} 20... Qxa1+
{[%clk 0:03:27.5]} 21. Ke2 {[%clk 0:01:08.2]} 21... Qc3 {[%clk 0:03:14.9]} 22.
Rc1 {[%clk 0:00:57.4]} 22... h6 {[%clk 0:03:10.8]} 23. Qg4 {[%clk 0:00:32.2]}
23... Nxg4 {[%clk 0:03:08.8]} 0-1